fUSD/lending_fUSD_20250420
["ID","MTS","AMOUNT","RATE_DAILY","PERIOD"]
[358449796,1745161840384,-536.19958709,0.00054794,120]
[358449797,1745161840393,-549.13198959,0.00054794,120]
[358449798,1745161840402,-538.41638056,0.00054794,120]
[358449799,1745161840412,-500.0,0.00054794,120]
[358449800,1745161840421,-500.0,0.00054794,120]
[358449801,1745161840430,-543.36,0.00054794,120]
[358449802,1745161840440,-500.0,0.00054794,120]
[358449803,1745161840450,-500.0,0.00054794,120]
[358449804,1745161840459,-500.0,0.00054794,120]
[358449805,1745161840469,-506.58267263,0.00054794,120]
[358449806,1745161840478,-500.0,0.00054794,120]
[358449807,1745161840488,-551.24,0.00054794,120]
[358449808,1745161840497,-500.0,0.00054794,120]
[358449809,1745161840506,-500.0,0.00054794,120]
[358449810,1745161840515,-500.0,0.00054794,120]
[358449811,1745161840525,-500.0,0.00054794,120]
[358449813,1745161840534,-500.0,0.00054794,120]
[358449814,1745161840542,-500.0,0.00054794,120]
[358449815,1745161840551,-500.0,0.00054794,120]
[358449816,1745161840560,-500.0,0.00054794,120]
[358449817,1745161840569,-500.0,0.00054794,120]
[358449818,1745161840577,-500.0,0.00054794,120]
[358449819,1745161840586,-506.37363328,0.00054794,2]
[358449820,1745161840595,-500.0,0.00054794,120]
[358449821,1745161840604,-505.47664339,0.00054794,120]
[358449822,1745161840614,-500.0,0.00054794,120]
[358449823,1745161840623,-500.0,0.00054794,120]
[358449824,1745161840633,-500.0,0.00054794,120]
[358449825,1745161840642,-293.75112702,0.00054794,120]
[358449826,1745161840652,-500.0,0.00054794,120]
[358449827,1745161840661,-500.0,0.00054794,120]
[358449828,1745161840671,-500.0,0.00054794,120]
[358449829,1745161840680,-500.0,0.00054794,120]
[358449830,1745161840689,-559.93183573,0.00054794,120]
[358449831,1745161840699,-500.0,0.00054794,120]
[358449832,1745161840827,-500.0,0.00054794,120]
[358449833,1745161840837,-250.0,0.00054794,120]
[358449834,1745161840846,-500.0,0.00054794,120]
[358449835,1745161840855,-500.0,0.00054794,120]
[358449836,1745161840863,-566.96519459,0.00054794,120]
[358449837,1745161840872,-500.0,0.00054794,120]
[358449838,1745161840882,-521.69732814,0.00054794,120]
[358449839,1745161840890,-500.0,0.00054794,120]
[358449840,1745161840900,-500.0,0.00054794,120]
[358449841,1745161840909,-500.0,0.00054794,120]
[358449842,1745161840918,-500.0,0.00054794,120]
[358449843,1745161840927,-500.0,0.00054794,120]
[358449844,1745161840936,-500.0,0.00054794,120]
[358449845,1745161840945,-500.0,0.00054794,120]
[358449846,1745161840954,-500.0,0.00054794,120]
[358449847,1745161840962,-500.0,0.00054794,120]
[358449848,1745161840971,-500.0,0.00054794,120]
[358449849,1745161840980,-500.0,0.00054794,120]
[358449850,1745161840989,-500.0,0.00054794,120]
[358449851,1745161840998,-500.0,0.00054794,120]
[358449852,1745161841006,-500.0,0.00054794,30]
[358449853,1745161841015,-500.0,0.00054794,120]
[358449854,1745161841024,-500.0,0.00054794,120]
[358449855,1745161841033,-629.90339339,0.00054794,120]
[358449856,1745161841042,-486.1469857,0.00054794,120]
[358449857,1745161841052,-500.0,0.00054794,120]
[358449858,1745161841061,-500.0,0.00054794,120]
[358449859,1745161841070,-500.0,0.00054794,120]
[358449860,1745161841080,-500.0,0.00054794,120]
[358449861,1745161841090,-500.0,0.00054794,120]
[358449862,1745161841099,-500.0,0.00054794,120]
[358449863,1745161841109,-500.0,0.00054794,120]
[358449864,1745161841122,-384.68581827,0.00054794,120]
[358449865,1745161841131,-500.0,0.00054794,120]
[358449866,1745161841140,-500.0,0.00054794,120]
[358449867,1745161841150,-500.0,0.00054794,120]
[358449868,1745161841160,-500.0,0.00054794,120]
[358449869,1745161841169,-500.0,0.00054794,120]
[358449870,1745161841178,-500.0,0.00054794,120]
[358449871,1745161841188,-528.06480768,0.00054794,120]
[358449872,1745161841198,-500.0,0.00054794,120]
[358449873,1745161841208,-560.75619329,0.00054794,120]
[358449874,1745161841218,-500.0,0.00054794,120]
[358449875,1745161841227,-525.59191384,0.00054794,120]
[358449876,1745161841236,-500.0,0.00054794,120]
[358449877,1745161841245,-500.0,0.00054794,120]
[358449878,1745161841255,-500.0,0.00054794,120]
[358449879,1745161841264,-500.0,0.00054794,120]
[358449880,1745161841273,-500.0,0.00054794,120]
[358449881,1745161841283,-500.0,0.00054794,120]
[358449882,1745161841293,-543.37885119,0.00054794,120]
[358449883,1745161841302,-500.0,0.00054794,120]
[358449884,1745161841312,-500.0,0.00054794,120]
[358449885,1745161841322,-500.0,0.00054794,120]
[358449886,1745161841331,-637.72929602,0.00054794,120]
[358449887,1745161841340,-500.0,0.00054794,120]
[358449888,1745161841349,-500.0,0.00054794,120]
[358449889,1745161841358,-500.0,0.00054794,120]
[358449890,1745161841367,-500.0,0.00054794,120]
[358449891,1745161841377,-500.0,0.00054794,120]
[358449892,1745161841386,-577.10558375,0.00054794,120]
[358449893,1745161841395,-500.0,0.00054794,120]
[358449894,1745161841404,-500.0,0.00054794,120]
[358449895,1745161841415,-562.4227257,0.00054794,120]
[358449896,1745161841424,-500.0,0.00054794,120]
[358449897,1745161841433,-500.0,0.00054794,120]
[358449898,1745161841442,-500.0,0.00054794,120]
[358449899,1745161841451,-500.0,0.00054794,120]
[358449900,1745161841460,-1325.19,0.00054794,120]
[358449901,1745161841470,-500.0,0.00054794,120]
[358449902,1745161841479,-500.0,0.00054794,120]
[358449903,1745161841488,-500.0,0.00054794,120]
[358449904,1745161841498,-500.0,0.00054794,120]
[358449905,1745161841507,-524.28987842,0.00054794,120]
[358449906,1745161841516,-500.0,0.00054794,120]
[358449907,1745161841525,-500.0,0.00054794,120]
[358449908,1745161841534,-500.0,0.00054794,120]
[358449909,1745161841543,-500.0,0.00054794,120]
[358449910,1745161841553,-539.56831786,0.00054794,120]
[358449911,1745161841562,-500.0,0.00054794,120]
[358449912,1745161841571,-500.0,0.00054794,120]
[358449913,1745161841580,-500.0,0.00054794,120]
[358449914,1745161841589,-392.83235893,0.00054794,120]
[358449915,1745161841598,-500.0,0.00054794,120]
[358449916,1745161841607,-442.08830946,0.00054794,120]
[358449917,1745161841616,-550.26545113,0.00054794,120]
[358449918,1745161841626,-500.0,0.00054794,120]
[358449919,1745161841635,-500.0,0.00054794,120]
[358449920,1745161841644,-500.0,0.00054794,120]
[358449921,1745161841653,-195.72553477,0.00054794,120]
[358449922,1745161841663,-500.0,0.00054794,120]
[358449923,1745161841672,-553.94624239,0.00054794,120]
[358449924,1745161841682,-558.64128294,0.00054794,120]
[358449925,1745161841692,-500.0,0.00054794,120]
[358449926,1745161841701,-500.0,0.00054794,120]
[358449927,1745161841710,-500.0,0.00054794,120]
[358449928,1745161841720,-500.0,0.00054794,120]
[358449929,1745161841729,-500.0,0.00054794,120]
[358449930,1745161841739,-540.99627826,0.00054794,120]
[358449931,1745161841748,-506.63237581,0.00054794,120]
[358449932,1745161841758,-500.0,0.00054794,120]
[358449933,1745161841767,-627.74,0.00054794,120]
[358449934,1745161841777,-500.0,0.00054794,120]
[358449935,1745161841787,-500.0,0.00054794,120]
[358449936,1745161841796,-500.0,0.00054794,120]
[358449937,1745161841805,-500.0,0.00054794,120]
[358449938,1745161841815,-500.0,0.00054794,120]
[358449939,1745161841824,-500.0,0.00054794,120]
[358449940,1745161841833,-500.0,0.00054794,120]
[358449941,1745161841842,-500.0,0.00054794,120]
[358449942,1745161841852,-500.0,0.00054794,120]
[358449943,1745161841861,-500.0,0.00054794,120]
[358449944,1745161841870,-624.60182317,0.00054794,120]
[358449945,1745161841880,-500.0,0.00054794,120]
[358449946,1745161841889,-500.0,0.00054794,120]
[358449947,1745161841899,-550.06351844,0.00054794,120]
[358449948,1745161841908,-500.0,0.00054794,120]
[358449949,1745161841917,-500.0,0.00054794,120]
[358449950,1745161841927,-500.0,0.00054794,15]
[358449951,1745161841937,-500.0,0.00054794,120]
[358449952,1745161841946,-500.0,0.00054794,120]
[358449953,1745161841955,-500.0,0.00054794,120]
[358449954,1745161841963,-533.91,0.00054794,120]
[358449955,1745161841973,-500.0,0.00054794,120]
[358449956,1745161841982,-526.15156024,0.00054794,60]
[358449957,1745161841991,-500.0,0.00054794,120]
[358449958,1745161842001,-500.0,0.00054794,120]
[358449959,1745161842010,-500.0,0.00054794,120]
[358449960,1745161842019,-500.0,0.00054794,120]
[358449961,1745161842028,-500.0,0.00054794,120]
[358449962,1745161842038,-500.0,0.00054794,120]
[358449963,1745161842048,-553.8276759,0.00054794,120]
[358449964,1745161842057,-500.0,0.00054794,120]
[358449965,1745161842067,-500.0,0.00054794,120]
[358449966,1745161842076,-500.0,0.00054794,120]
[358449967,1745161842085,-500.0,0.00054794,120]
[358449968,1745161842094,-500.0,0.00054794,120]
[358449969,1745161842104,-480.34967369,0.00054794,120]
[358449970,1745161842113,-500.0,0.00054794,120]
[358449971,1745161842127,-500.0,0.00054794,120]
[358449972,1745161842137,-500.0,0.00054794,120]
[358449973,1745161842146,-500.0,0.00054794,120]
[358449974,1745161842155,-500.0,0.00054794,120]
[358449975,1745161842165,-507.76754129,0.00054794,120]
[358449976,1745161842175,-500.0,0.00054794,120]
[358449977,1745161842184,-640.93,0.00054794,120]
[358449978,1745161842193,-500.0,0.00054794,120]
[358449979,1745161842203,-551.1302692,0.00054794,120]
[358449980,1745161842214,-500.0,0.00054794,120]
[358449981,1745161842223,-500.0,0.00054794,2]
[358449982,1745161842232,-526.78,0.00054794,120]
[358449983,1745161842242,-500.0,0.00054794,120]
[358449984,1745161842251,-500.0,0.00054794,120]
[358449985,1745161842260,-500.0,0.00054794,120]
[358449986,1745161842270,-500.0,0.00054794,120]
[358449987,1745161842279,-592.22261843,0.00054794,120]
[358449988,1745161842289,-500.0,0.00054794,120]
[358449989,1745161842299,-500.0,0.00054794,120]
[358449990,1745161842309,-500.0,0.00054794,120]
[358449991,1745161842318,-99.01564977,0.00054794,120]
[358449992,1745161842628,-400.98435023,0.00054794,120]
[358449993,1745161842637,-370.61564977,0.00054794,120]
[358450002,1745161843006,-129.38435023,0.00054794,120]
[358450003,1745161843016,-500.0,0.00054794,120]
[358450004,1745161843026,-500.0,0.00054794,120]
[358450005,1745161843035,-500.0,0.00054794,120]
[358450006,1745161843044,-556.69100096,0.00054794,120]
[358450007,1745161843053,-500.0,0.00054794,120]
[358450008,1745161843063,-519.34005313,0.00054794,120]
[358450009,1745161843072,-500.0,0.00054794,120]
[358450010,1745161843082,-500.0,0.00054794,120]
[358450011,1745161843091,-500.0,0.00054794,120]
[358450012,1745161843100,-420.86898011,0.00054794,120]
[358450013,1745161843110,-500.0,0.00054794,120]
[358450014,1745161843121,-500.0,0.00054794,120]
[358450015,1745161843132,-500.0,0.00054794,120]
[358450016,1745161843141,-500.0,0.00054794,120]
[358450017,1745161843151,-366.12530561,0.00054794,120]
[358450018,1745161843160,-500.0,0.00054794,120]
[358450019,1745161843170,-500.0,0.00054794,120]
[358450020,1745161843179,-500.0,0.00054794,120]
[358450021,1745161843189,-500.0,0.00054794,120]
[358450022,1745161843199,-500.0,0.00054794,120]
[358450023,1745161843208,-500.0,0.00054794,120]
[358450024,1745161843217,-500.0,0.00054794,120]
[358450025,1745161843226,-300.0,0.00054794,120]
[358450026,1745161843236,-500.0,0.00054794,120]
[358450027,1745161843245,-500.0,0.00054794,120]
[358450028,1745161843254,-500.0,0.00054794,120]
[358450029,1745161843263,-500.0,0.00054794,120]
[358450030,1745161843272,-500.0,0.00054794,120]
[358450031,1745161843281,-524.42090763,0.00054794,120]
[358450032,1745161843291,-570.82,0.00054794,120]
[358450033,1745161843300,-500.0,0.00054794,120]
[358450034,1745161843309,-500.0,0.00054794,120]
[358450035,1745161843319,-542.11266623,0.00054794,120]
[358450036,1745161843327,-500.0,0.00054794,120]
[358450037,1745161843345,-519.62574673,0.00054794,120]
[358450038,1745161843354,-500.0,0.00054794,120]
[358450039,1745161843363,-500.0,0.00054794,120]
[358450040,1745161843372,-516.90495129,0.00054794,120]
[358450041,1745161843381,-500.0,0.00054794,120]
[358450042,1745161843391,-515.98379561,0.00054794,120]
[358450043,1745161843400,-500.0,0.00054794,120]
[358450044,1745161843409,-500.0,0.00054794,120]
[358450045,1745161843418,-500.0,0.00054794,120]
[358450046,1745161843428,-500.0,0.00054794,120]
[358450047,1745161843437,-500.0,0.00054794,120]
[358450048,1745161843446,-500.0,0.00054794,120]
[358450049,1745161843455,-500.0,0.00054794,120]
[358450050,1745161843464,-502.9002386,0.00054794,120]
[358450051,1745161843473,-520.10145198,0.00054794,120]
[358450052,1745161843483,-500.0,0.00054794,120]
[358450053,1745161843492,-500.0,0.00054794,120]
[358450054,1745161843501,-500.0,0.00054794,120]
[358450055,1745161843510,-500.0,0.00054794,120]
[358450056,1745161843519,-517.73722548,0.00054794,120]
[358450057,1745161843529,-500.0,0.00054794,120]
[358450058,1745161843538,-500.0,0.00054794,120]
[358450059,1745161843547,-500.0,0.00054794,120]
[358450060,1745161843556,-500.0,0.00054794,120]
[358450061,1745161843565,-549.38073464,0.00054794,60]
[358450062,1745161843574,-500.0,0.00054794,120]
[358450063,1745161843583,-500.0,0.00054794,120]
[358450064,1745161843593,-304.17469478,0.00054794,120]
[358450065,1745161843602,-511.08913748,0.00054794,120]
[358450066,1745161843611,-506.62133027,0.00054794,120]
[358450067,1745161843620,-508.05680236,0.00054794,120]
[358450068,1745161843629,-500.0,0.00054794,120]
[358450069,1745161843638,-500.0,0.00054794,120]
[358450070,1745161843648,-500.0,0.00054794,120]
[358450071,1745161843656,-617.37872755,0.00054794,120]
[358450073,1745161843666,-500.0,0.00054794,120]
[358450074,1745161843675,-500.0,0.00054794,120]
[358450075,1745161843684,-500.0,0.00054794,120]
[358450076,1745161843694,-500.0,0.00054794,120]
[358450077,1745161843703,-500.0,0.00054794,120]
[358450078,1745161843712,-500.0,0.00054794,120]
[358450079,1745161843721,-511.7947414,0.00054794,120]
[358450080,1745161843730,-551.03957783,0.00054794,120]
[358450081,1745161843739,-500.0,0.00054794,120]
[358450082,1745161843748,-500.0,0.00054794,120]
[358450083,1745161843757,-500.0,0.00054794,120]
[358450084,1745161843766,-500.0,0.00054794,120]
[358450085,1745161843775,-524.3662481,0.00054794,120]
[358450086,1745161843784,-530.20066749,0.00054794,120]
[358450087,1745161843793,-500.0,0.00054794,120]
[358450088,1745161843803,-535.05852925,0.00054794,120]
[358450089,1745161843811,-500.0,0.00054794,120]
[358450090,1745161843821,-500.0,0.00054794,120]
[358450091,1745161843830,-517.35116806,0.00054794,120]
[358450092,1745161843839,-500.0,0.00054794,120]
[358450093,1745161843848,-500.0,0.00054794,120]
[358450094,1745161843857,-555.02969413,0.00054794,120]
[358450095,1745161843866,-500.0,0.00054794,120]
[358450096,1745161843875,-390.47460543,0.00054794,120]
[358450097,1745161843890,-149.22402815,0.00054794,120]
[358450098,1745161843899,-500.0,0.00054794,120]
[358450099,1745161843909,-98.98575613,0.00054794,120]
[358450100,1745161843920,-401.01424387,0.00054794,120]
[358450101,1745161843929,-500.0,0.00054794,10]
[358450102,1745161843938,-326.93325449,0.00054794,120]
[358450103,1745161843950,-173.06674551,0.00054794,120]
[358450104,1745161843959,-572.38324864,0.00054794,120]
[358450105,1745161843968,-397.81481976,0.00054794,120]
[358450106,1745161843979,-102.18518024,0.00054794,120]
[358450107,1745161843988,-500.0,0.00054794,120]
[358450108,1745161843997,-521.85582587,0.00054794,120]
[358450109,1745161844006,-500.0,0.00054794,120]
[358450110,1745161844015,-1411.75,0.00054794,2]
[358450111,1745161844024,-500.0,0.00054794,120]
[358450112,1745161844034,-500.0,0.00054794,120]
[358450113,1745161844043,-500.0,0.00054794,120]
[358450114,1745161844053,-500.0,0.00054794,120]
[358450115,1745161844062,-335.20899389,0.00054794,120]
[358450116,1745161844163,-160.11,0.00033498,2]
[358450117,1745161844173,-164.79100611,0.00054794,120]
[358450118,1745161844182,-500.0,0.00054794,20]
[358450119,1745161844192,-500.0,0.00054794,120]
[358450120,1745161844201,-500.0,0.00054794,120]
[358450121,1745161844211,-412.38630878,0.00054794,120]
[358450122,1745161844440,-151.0,0.00033498,2]
[358450123,1745161844450,-87.61369122,0.00054794,120]
[358450124,1745161844460,-500.0,0.00054794,120]
[358450125,1745161844469,-144.87221724,0.00054794,120]
[358450126,1745161844481,-355.12778276,0.00054794,120]
[358450127,1745161844490,-500.0,0.00054794,120]
[358450128,1745161844499,-500.0,0.00054794,120]
[358450129,1745161844508,-500.0,0.00054794,120]
[358450130,1745161844517,-500.0,0.00054794,120]
[358450131,1745161844526,-500.0,0.00054794,120]
[358450132,1745161844536,-500.0,0.00054794,120]
[358450133,1745161844546,-500.0,0.00054794,120]
[358450134,1745161844555,-278.53,0.00054794,120]
[358450135,1745161844564,-500.0,0.00054794,120]
[358450136,1745161844573,-500.0,0.00054794,120]
[358450137,1745161844582,-555.88698648,0.00054794,120]
[358450138,1745161844591,-500.0,0.00054794,120]
[358450139,1745161844600,-500.0,0.00054794,120]
[358450140,1745161844609,-523.3223277,0.00054794,120]
[358450141,1745161844618,-548.65330815,0.00054794,120]
[358450142,1745161844627,-500.0,0.00054794,120]
[358450143,1745161844636,-500.0,0.00054794,120]
[358450144,1745161844645,-253.5406146,0.00054794,120]
[358450145,1745161844654,-500.0,0.00054794,120]
[358450146,1745161844663,-1171.6,0.00054794,120]
[358450147,1745161844672,-500.0,0.00054794,120]
[358450148,1745161844681,-500.0,0.00054794,120]
[358450149,1745161844690,-500.0,0.00054794,120]
[358450150,1745161844700,-500.0,0.00054794,120]
[358450151,1745161844709,-541.95144935,0.00054794,120]
[358450152,1745161844718,-500.0,0.00054794,120]
[358450153,1745161844727,-500.0,0.00054794,120]
[358450154,1745161844737,-500.0,0.00054794,120]
[358450155,1745161844746,-500.0,0.00054794,120]
[358450156,1745161844756,-500.0,0.00054794,120]
[358450157,1745161844766,-500.0,0.00054794,120]
[358450158,1745161844775,-500.0,0.00054794,120]
[358450159,1745161844784,-500.0,0.00054794,120]
[358450160,1745161844794,-500.0,0.00054794,120]
[358450161,1745161844804,-500.0,0.00054794,120]
[358450162,1745161844813,-500.0,0.00054794,120]
[358450163,1745161844823,-578.61711193,0.00054794,120]
[358450164,1745161844832,-513.9,0.00054794,120]
[358450165,1745161844842,-500.0,0.00054794,120]
[358450166,1745161844851,-548.31127408,0.00054794,120]
[358450167,1745161844860,-500.0,0.00054794,120]
[358450168,1745161844869,-500.0,0.00054794,120]
[358450169,1745161844879,-500.0,0.00054794,120]
[358450170,1745161844888,-500.0,0.00054794,60]
[358450171,1745161844897,-500.0,0.00054794,120]
[358450172,1745161844907,-500.0,0.00054794,120]
[358450173,1745161844916,-514.75456949,0.00054794,120]
[358450174,1745161844925,-500.0,0.00054794,120]
[358450175,1745161844934,-500.0,0.00054794,120]
[358450176,1745161845061,-500.0,0.00054794,120]
[358450177,1745161845071,-500.0,0.00054794,120]
[358450178,1745161845080,-500.0,0.00054794,120]
[358450179,1745161845089,-500.0,0.00054794,120]
[358450180,1745161845099,-536.53357903,0.00054794,120]
[358450181,1745161845108,-500.0,0.00054794,120]
[358450182,1745161845117,-500.0,0.00054794,120]
[358450183,1745161845128,-634.78,0.00054794,120]
[358450184,1745161845137,-202.87,0.00054794,35]
[358450185,1745161845146,-500.0,0.00054794,120]
[358450186,1745161845155,-500.0,0.00054794,120]
[358450187,1745161845165,-500.0,0.00054794,120]
[358450188,1745161845175,-500.0,0.00054794,120]
[358450189,1745161845184,-500.0,0.00054794,120]
[358450190,1745161845195,-500.0,0.00054794,120]
[358450191,1745161845204,-500.0,0.00054794,120]
[358450192,1745161845213,-500.0,0.00054794,120]
[358450193,1745161845223,-500.0,0.00054794,120]
[358450194,1745161845231,-500.0,0.00054794,120]
[358450195,1745161845241,-500.0,0.00054794,120]
[358450196,1745161845250,-500.0,0.00054794,120]
[358450197,1745161845260,-526.98,0.00054794,120]
[358450198,1745161845269,-594.68215727,0.00054794,120]
[358450199,1745161845278,-500.0,0.00054794,120]
[358450200,1745161845287,-500.0,0.00054794,120]
[358450201,1745161845297,-500.0,0.00054794,120]
[358450202,1745161845306,-200.0,0.00054794,120]
[358450203,1745161845315,-500.0,0.00054794,120]
[358450204,1745161845325,-207.4,0.00054794,120]
[358450205,1745161845334,-215.0738,0.00054794,120]
[358450206,1745161845343,-500.0,0.00054794,120]
[358450207,1745161845352,-223.0315306,0.00054794,120]
[358450208,1745161845362,-535.57020341,0.00054794,120]
[358450209,1745161845371,-231.28369723,0.00054794,120]
[358450210,1745161845380,-500.0,0.00054794,120]
[358450211,1745161845389,-1498.36,0.00054794,120]
[358450212,1745161845398,-500.0,0.00054794,120]
[358450213,1745161845408,-239.84119403,0.00054794,120]
[358450214,1745161845417,-248.71531821,0.00054794,120]
[358450215,1745161845426,-500.0,0.00054794,120]
[358450216,1745161845435,-500.0,0.00054794,120]
[358450217,1745161845444,-257.91778498,0.00054794,120]
[358450218,1745161845454,-267.46074303,0.00054794,120]
[358450219,1745161845463,-500.0,0.00054794,120]
[358450220,1745161845472,-277.35679052,0.00054794,120]
[358450221,1745161845481,-500.0,0.00054794,120]
[358450222,1745161845490,-287.61899177,0.00054794,120]
[358450223,1745161845499,-500.0,0.00054794,120]
[358450224,1745161845508,-298.26089446,0.00054794,120]
[358450225,1745161845517,-309.29654756,0.00054794,120]
[358450226,1745161845526,-320.74051982,0.00054794,120]
[358450227,1745161845535,-332.60791905,0.00054794,120]
[358450228,1745161845544,-500.0,0.00054794,120]
[358450229,1745161845553,-344.91441206,0.00054794,120]
[358450230,1745161845562,-500.0,0.00054794,120]
[358450231,1745161845571,-357.6762453,0.00054794,120]
[358450232,1745161845581,-370.91026638,0.00054794,120]
[358450233,1745161845590,-500.0,0.00054794,120]
[358450234,1745161845599,-1944.28,0.00054794,12]
[358450235,1745161845609,-522.16630381,0.00054794,120]
[358450236,1745161845618,-384.63394623,0.00054794,120]
[358450237,1745161845627,-500.0,0.00054794,120]
[358450238,1745161845636,-600.0,0.00054794,120]
[358450239,1745161845646,-1277.49,0.00054794,120]
[358450240,1745161845655,-500.0,0.00054794,120]
[358450241,1745161845664,-500.0,0.00054794,120]
[358450242,1745161845673,-500.0,0.00054794,120]
[358450243,1745161845682,-500.0,0.00054794,120]
[358450244,1745161845691,-314.1937851,0.00054794,120]
[358450245,1745161845700,-500.0,0.00054794,120]
[358450246,1745161845709,-500.0,0.00054794,120]
[358450247,1745161845718,-500.0,0.00054794,120]
[358450248,1745161845727,-500.0,0.00054794,120]
[358450249,1745161845737,-500.0,0.00054794,120]
[358450250,1745161845746,-500.0,0.00054794,120]
[358450251,1745161845755,-500.0,0.00054794,120]
[358450252,1745161845764,-500.0,0.00054794,120]
[358450253,1745161845773,-500.0,0.00054794,120]
[358450254,1745161845783,-535.76,0.00054794,120]
[358450255,1745161845792,-783.96,0.00054794,120]
[358450256,1745161845802,-500.0,0.00054794,120]
[358450257,1745161845811,-500.0,0.00054794,120]
[358450258,1745161845820,-500.0,0.00054794,120]
[358450259,1745161845830,-500.0,0.00054794,120]
[358450260,1745161845840,-500.0,0.00054794,120]
[358450261,1745161845849,-500.0,0.00054794,120]
[358450262,1745161845858,-500.0,0.00054794,120]
[358450263,1745161845867,-500.0,0.00054794,120]
[358450264,1745161845876,-500.0,0.00054794,120]
[358450265,1745161845885,-500.0,0.00054794,120]
[358450266,1745161845894,-500.0,0.00054794,120]
[358450267,1745161845903,-500.0,0.00054794,120]
[358450268,1745161845913,-500.0,0.00054794,120]
[358450269,1745161845923,-500.0,0.00054794,120]
[358450270,1745161845931,-500.0,0.00054794,120]
[358450271,1745161845941,-1500.0,0.00054794,120]
[358450272,1745161845950,-500.0,0.00054794,120]
[358450273,1745161845960,-500.0,0.00054794,120]
[358450274,1745161845969,-500.0,0.00054794,120]
[358450275,1745161845978,-500.0,0.00054794,120]
[358450276,1745161845987,-500.0,0.00054794,120]
[358450277,1745161845996,-500.0,0.00054794,120]
[358450278,1745161846006,-500.0,0.00054794,120]
[358450279,1745161846015,-589.27,0.00054794,120]
[358450280,1745161846024,-500.0,0.00054794,120]
[358450281,1745161846034,-500.0,0.00054794,120]
[358450282,1745161846043,-500.0,0.00054794,120]
[358450283,1745161846053,-500.0,0.00054794,120]
[358450284,1745161846062,-524.24,0.00054794,120]
[358450285,1745161846071,-500.0,0.00054794,120]
[358450286,1745161846079,-432.21481287,0.00054794,120]
[358450287,1745161846095,-67.78518713,0.00054794,120]
[358450288,1745161846104,-500.0,0.00054794,120]
[358450289,1745161846113,-1.41495785,0.00054794,30]
[358450307,1745161848227,-498.58504215,0.00054794,30]
[358450308,1745161848237,-500.0,0.00054794,120]
[358450309,1745161848246,-500.0,0.00054794,120]
[358450310,1745161848256,-568.33,0.00054794,120]
[358450311,1745161848264,-500.0,0.00054794,120]
[358450312,1745161848274,-500.0,0.00054794,120]
[358450313,1745161848284,-500.0,0.00054794,120]
[358450314,1745161848293,-500.0,0.00054794,120]
[358450315,1745161848302,-500.0,0.00054794,120]
[358450316,1745161848312,-500.0,0.00054794,120]
[358450317,1745161848321,-500.0,0.00054794,120]
[358450318,1745161848330,-500.0,0.00054794,120]
[358450319,1745161848340,-500.0,0.00054794,120]
[358450320,1745161848349,-509.74060325,0.00054794,120]
[358450321,1745161848358,-500.0,0.00054794,120]
[358450322,1745161848367,-524.72208756,0.00054794,120]